bitfinex/quotes_ETHUSD_20251108
["timestamp","ask_amount","ask_price","bid_price","bid_amount"]
[1762601044741,14.01155454,3457.0,3456.9,0.001]
[1762601046475,13.45995454,3457.0,3456.9,0.001]
[1762601046674,13.45995454,3457.0,3456.9,0.4512]
[1762601047584,13.45995454,3457.0,3456.9,0.001]
[1762601048085,13.53165454,3457.0,3456.9,0.001]
[1762601048586,13.07776899,3457.0,3456.9,0.001]
[1762601049580,12.62387928,3457.0,3456.9,0.001]
[1762601050486,11.54466292,3457.0,3456.9,0.001]
[1762601050988,11.06486292,3457.0,3456.9,0.001]
[1762601051176,10.99316292,3457.0,3456.9,0.001]
[1762601051696,3.29843656,3456.7,3456.6,0.4671]
[1762601051991,4.70223225,3456.6,3456.5,0.001]
[1762601052289,9.32926541,3456.6,3456.5,0.4681]
[1762601052592,9.32926541,3456.6,3456.5,0.9183]
[1762601052979,9.79736541,3456.6,3456.5,0.9183]
[1762601053364,4.76482825,3456.6,3456.5,0.9183]
[1762601054371,9.29415546,3456.6,3456.5,0.9183]
[1762601060278,10.07325253,3456.6,3456.5,0.9183]
[1762601062892,9.29415546,3456.6,3456.5,0.9183]
[1762601063097,10.66212913,3456.6,3456.5,0.9183]
[1762601064791,11.28618087,3456.6,3456.5,0.001]
[1762601065022,12.17568487,3456.6,3456.5,0.001]
[1762601065222,13.7338721,3456.6,3456.5,0.001]
[1762601066524,12.7770721,3456.6,3456.5,0.4512]
[1762601067552,12.7770721,3456.6,3456.5,0.001]
[1762601068460,13.2498721,3456.6,3456.5,0.001]
[1762601068840,12.17568487,3456.6,3456.5,0.001]
[1762601069426,11.69168487,3456.6,3456.5,0.001]
[1762601070664,12.17568487,3456.6,3456.5,0.001]
[1762601071665,12.17568487,3456.6,3456.5,0.4919]
[1762601071666,0.61935174,3456.6,3456.5,0.4919]
[1762601071867,2.89301625,3456.6,3456.5,0.9782]
[1762601072339,4.15272825,3456.6,3456.5,0.9782]
[1762601072536,2.89276519,3456.9,3456.5,0.9782]
[1762601072772,2.89276519,3456.9,3456.8,0.4909]
[1762601072773,4.15247719,3456.9,3456.8,0.4909]
[1762601073265,4.15247719,3456.9,3456.8,0.9772]
[1762601074670,4.60631051,3456.9,3456.8,0.9772]
[1762601074974,4.15247719,3456.9,3456.8,0.9772]
[1762601075279,5.49245365,3456.9,3456.8,0.9772]
[1762601075885,5.49245365,3456.9,3456.8,0.4909]
[1762601076051,2.89301625,3456.6,3456.5,0.001]
[1762601076252,9.46283843,3456.6,3456.5,0.4919]
[1762601076794,9.46283843,3456.6,3456.5,0.9782]
[1762601076956,8.68205546,3456.6,3456.5,0.9782]
[1762601077350,10.38216346,3456.6,3456.5,0.9782]
[1762601077750,10.38216346,3456.6,3456.5,0.4919]
[1762601079101,11.42428502,3456.6,3456.5,0.4919]
[1762601079788,11.42428502,3456.6,3456.5,0.001]
[1762601080583,10.83406346,3456.6,3456.5,0.001]
[1762601081164,11.30116346,3456.6,3456.5,0.001]
[1762601081363,12.39727465,3456.6,3456.5,0.001]
[1762601081794,12.80277865,3456.6,3456.5,0.001]
[1762601081973,13.26987865,3456.6,3456.5,0.001]
[1762601086285,13.38584639,3456.6,3456.5,0.001]
[1762601088727,17.9151736,3456.6,3456.5,0.001]
[1762601089217,16.35196241,3456.6,3456.5,0.001]
[1762601089617,2.89326736,3456.3,3456.2,0.001]
[1762601089822,4.55881824,3455.9,3455.8,0.001]
[1762601089984,9.18414545,3455.9,3455.8,0.001]
[1762601090190,9.30013673,3455.9,3455.8,0.001]
[1762601090426,11.01125497,3455.9,3455.8,0.001]
[1762601091329,11.46526638,3455.9,3455.8,0.001]
[1762601092195,10.96376238,3455.9,3455.8,0.4954]
[1762601092444,10.29299988,3455.9,3455.8,0.9685]
[1762601092720,9.25264414,3455.9,3455.8,0.9685]
[1762601093924,4.72331693,3455.9,3455.8,0.9685]
[1762601094136,4.15331424,3455.9,3455.8,0.9685]
[1762601094504,4.93340774,3455.9,3455.8,0.9685]
[1762601094713,4.15331424,3455.9,3455.8,0.9685]
[1762601095750,2.89360224,3455.9,3455.8,0.9685]
[1762601096442,1.259712,3456.0,3455.8,0.9685]
[1762601096667,4.153293,3456.0,3455.9,0.4944]
[1762601097002,4.6072416,3456.0,3455.9,0.4944]
[1762601097208,4.6072416,3456.0,3455.9,0.9675]
[1762601099746,0.4539486,3456.0,3455.9,0.9675]
[1762601100113,0.002,3456.1,3455.9,0.9675]
[1762601100308,0.002,3456.1,3456.0,0.9675]
[1762601101169,2.89543479,3456.1,3456.0,0.9675]
[1762601101381,4.15514679,3456.1,3456.0,0.4944]
[1762601101675,4.15514679,3456.1,3456.0,0.9614]
[1762601103381,4.60906877,3456.1,3456.0,0.9614]
[1762601106133,1.71563398,3456.1,3456.0,0.9614]
[1762601106335,4.60906877,3456.1,3456.0,0.9614]
[1762601107853,1.71563398,3456.1,3456.0,0.9614]
[1762601108056,4.60906877,3456.1,3456.0,0.9614]
[1762601113801,1.71563398,3456.1,3456.0,0.9614]
[1762601114301,4.60906877,3456.1,3456.0,0.9614]
[1762601114893,1.71563398,3456.1,3456.0,0.9614]
[1762601115092,4.60906877,3456.1,3456.0,0.9614]
[1762601115299,1.71563398,3456.1,3456.0,0.9614]
[1762601115610,1.71563398,3456.1,3456.0,0.9624]
[1762601119817,0.002,3456.1,3456.0,0.9624]
[1762601120119,0.002,3456.1,3456.0,3.85591851]
[1762601121009,0.002,3456.1,3456.0,0.9624]
[1762601121588,0.002,3456.1,3456.0,3.85591851]
[1762601122601,0.002,3456.1,3456.0,0.9624]
[1762601123108,0.002,3456.1,3456.0,3.85591851]
[1762601123507,0.002,3456.1,3456.0,0.9624]
[1762601125585,2.89543479,3456.1,3456.0,0.001]
[1762601125785,4.44467558,3456.1,3456.0,0.001]
[1762601126489,4.90847558,3456.1,3456.0,0.001]
[1762601127329,5.68896116,3456.1,3456.0,0.001]
[1762601128645,5.39437558,3456.1,3456.0,0.001]
[1762601128939,5.51034668,3456.1,3456.0,0.001]
[1762601129346,6.55070242,3456.1,3456.0,0.001]
[1762601130446,6.06480242,3456.1,3456.0,0.001]
[1762601130645,6.55070242,3456.1,3456.0,0.001]
[1762601135255,5.51034668,3456.1,3456.0,0.001]
[1762601136244,5.60306747,3456.1,3456.0,0.001]
[1762601136953,6.09016747,3456.1,3456.0,0.001]
[1762601137759,6.56226747,3456.1,3456.0,0.001]
[1762601137962,6.09016747,3456.1,3456.0,0.001]
[1762601139260,6.56226747,3456.1,3456.0,0.001]
[1762601140656,7.01621386,3456.1,3456.0,0.001]
[1762601141362,2.89360224,3455.9,3455.8,0.001]
[1762601141563,7.67132479,3455.8,3455.7,0.001]
[1762601141864,9.66222495,3455.8,3455.7,0.001]
[1762601142069,9.77820715,3455.8,3455.7,0.001]
[1762601146359,9.30610715,3455.8,3455.7,0.001]
[1762601148171,10.21049139,3455.8,3455.7,0.001]
[1762601148372,11.19725792,3455.8,3455.7,0.001]
[1762601149183,12.23945808,3455.8,3455.7,0.001]
[1762601149399,11.19725792,3455.8,3455.7,0.001]
[1762601149898,10.76565792,3455.8,3455.7,0.001]
[1762601150105,11.21605792,3455.8,3455.7,0.001]
[1762601150408,12.77783945,3455.8,3455.7,0.001]
[1762601150704,12.32743945,3455.8,3455.7,0.001]
[1762601152299,8.24129123,3455.8,3455.7,0.467]
[1762601152481,10.54478644,3455.8,3455.7,0.9313]
[1762601152798,1.85769624,3455.8,3455.7,0.9313]
[1762601153464,2.64048954,3455.8,3455.7,0.9313]
[1762601154055,1.85769624,3455.8,3455.7,0.9313]
[1762601154262,2.64048986,3455.8,3455.7,0.9313]
[1762601156299,2.18650562,3455.8,3455.7,0.9313]
[1762601158233,0.144,3455.8,3455.7,0.9313]
[1762601158603,0.144,3455.8,3455.7,3.82506971]
[1762601159633,0.59789387,3455.8,3455.7,0.9313]
[1762601160139,0.59789387,3455.8,3455.7,3.82506971]
[1762601160319,0.59789387,3455.8,3455.7,0.9313]
[1762601160738,0.59789387,3455.8,3455.7,3.82506971]
[1762601160937,0.59789387,3455.8,3455.7,0.9313]
[1762601161809,0.59789387,3455.8,3455.7,0.467]
[1762601162123,0.59789387,3455.8,3455.7,0.9632]
[1762601162430,0.59789387,3455.8,3455.7,0.467]
[1762601163499,3.49157984,3455.8,3455.7,0.467]
[1762601163902,3.95857984,3455.8,3455.7,0.467]
[1762601164300,6.00108546,3455.8,3455.7,0.467]
[1762601164820,6.49878546,3455.8,3455.7,0.001]
[1762601165060,8.05408041,3455.8,3455.7,0.001]
[1762601166025,7.55638041,3455.8,3455.7,0.4806]
[1762601166460,7.55638041,3455.8,3455.7,0.001]
[1762601166859,8.05408041,3455.8,3455.7,0.001]
[1762601167023,8.39128041,3455.8,3455.7,0.001]
[1762601167223,8.01599079,3455.8,3455.7,0.001]
[1762601167444,9.57777232,3455.8,3455.7,0.001]
[1762601168365,8.01599079,3455.8,3455.7,0.001]
[1762601169264,7.61048679,3455.8,3455.7,0.001]
[1762601169632,7.15659292,3455.8,3455.7,0.001]
[1762601172825,7.61061606,3455.8,3455.7,0.001]
[1762601175355,4.15348171,3455.7,3455.6,0.001]
[1762601175558,7.70260967,3455.7,3455.6,0.001]
[1762601176072,7.81860196,3455.7,3455.6,0.001]
[1762601176229,7.33740196,3455.7,3455.6,0.001]
[1762601176430,11.84773816,3455.7,3455.6,0.001]
[1762601176649,11.84773816,3455.7,3455.6,0.4806]
[1762601176837,8.8025102,3455.7,3455.6,0.4806]
[1762601177036,9.58275849,3455.7,3455.6,0.9768]
[1762601177366,9.58275849,3455.7,3455.6,0.4806]
[1762601177565,9.3002102,3455.7,3455.6,0.001]
[1762601179891,8.8025102,3455.7,3455.6,0.4806]
[1762601180695,9.2565048,3455.7,3455.6,0.4806]
[1762601181108,8.8025102,3455.7,3455.6,0.4806]
[1762601183798,8.8025102,3455.7,3455.6,0.001]
[1762601183995,10.95697038,3455.7,3455.6,0.001]
[1762601184204,11.41096557,3455.7,3455.6,0.001]
[1762601184708,11.89216557,3455.7,3455.6,0.001]
[1762601185065,11.41096557,3455.7,3455.6,0.001]
[1762601188798,11.89216557,3455.7,3455.6,0.001]
[1762601189738,11.89216557,3455.7,3455.6,0.4806]
[1762601189739,10.91326557,3455.7,3455.6,0.4806]
[1762601189912,9.25650539,3455.7,3455.6,0.9768]
[1762601190240,7.14356546,3455.7,3455.6,0.9768]
[1762601190399,9.58333998,3455.7,3455.6,0.9768]
[1762601191099,9.58333998,3455.7,3455.6,0.4806]
[1762601191299,9.58362797,3455.7,3455.6,0.4806]
[1762601191512,8.8025102,3455.7,3455.6,0.9781]
[1762601192036,9.58362797,3455.7,3455.6,0.9781]
[1762601192716,9.58362797,3455.7,3455.6,0.4806]
[1762601193331,9.58362797,3455.7,3455.6,0.001]
[1762601193332,11.42635848,3455.7,3455.6,0.001]
[1762601193736,11.88035163,3455.7,3455.6,0.001]
[1762601194036,11.42635848,3455.7,3455.6,0.001]
[1762601194736,12.46684792,3455.7,3455.6,0.001]
[1762601195535,1.752012,3455.5,3455.3,0.001]
[1762601195703,11.52755888,3455.4,3455.3,0.001]
[1762601196046,12.01775888,3455.4,3455.3,0.001]
[1762601196620,3.0381047,3455.3,3455.2,0.001]
[1762601196926,4.15390046,3455.2,3455.1,0.006]
[1762601197123,8.6871042,3455.0,3454.3,0.4975]
[1762601197327,9.1794042,3455.0,3454.3,0.4975]
[1762601197527,9.6696042,3455.0,3454.3,0.4975]
[1762601198137,9.46914507,3455.0,3454.9,0.4988]
[1762601198350,9.96144507,3455.0,3454.9,0.001]
[1762601198555,12.03447043,3455.0,3454.9,0.001]
[1762601198862,12.90451354,3455.0,3454.9,0.001]
[1762601199181,12.41221354,3455.0,3454.9,0.4988]
[1762601199334,5.80615198,3455.0,3454.9,0.9963]
[1762601201680,5.80615198,3455.0,3454.9,0.4988]
[1762601201963,5.80615198,3455.0,3454.9,0.001]
[1762601202148,6.29845198,3455.0,3454.9,0.001]
[1762601202320,8.27764387,3455.0,3454.9,0.001]
[1762601204367,7.495603,3455.0,3454.9,0.001]
[1762601204523,8.73169243,3455.0,3454.9,0.001]
[1762601204724,8.27764387,3455.0,3454.9,0.001]
[1762601205318,7.495603,3455.0,3454.9,0.001]
[1762601206818,7.003303,3455.0,3454.9,0.001]
[1762601207758,7.9526537,3455.0,3454.9,0.001]
[1762601209066,8.73469457,3455.0,3454.9,0.001]
[1762601209848,9.21369457,3455.0,3454.9,0.001]
[1762601211068,8.73469457,3455.0,3454.9,0.001]
[1762601211627,8.4316537,3455.0,3454.9,0.001]
[1762601212961,4.5629977,3455.0,3454.9,0.4933]
[1762601213177,1.259712,3455.0,3454.9,0.9811]
[1762601214058,4.5330362,3455.1,3454.9,0.9811]
[1762601214254,0.78126555,3455.5,3455.0,1.00904356]
[1762601214490,0.78126555,3455.6,3455.1,3.41095856]
[1762601214789,4.93474726,3455.7,3455.6,0.676]
[1762601214990,10.40193302,3455.7,3455.6,0.4923]
[1762601215377,9.46778346,3455.7,3455.6,0.4923]
[1762601215582,9.46778346,3455.7,3455.6,0.9801]
[1762601216088,9.46778346,3455.7,3455.6,0.4923]
[1762601216302,9.4675955,3455.7,3455.6,0.4923]
[1762601216451,8.68651791,3455.7,3455.6,0.4923]
[1762601216655,2.8939372,3455.5,3455.4,0.4878]
[1762601216855,4.1536492,3455.5,3455.4,0.4878]
[1762601217092,4.1536492,3455.5,3455.4,0.9801]
[1762601218159,2.234012,3455.5,3454.9,0.6725]
[1762601218353,4.5330362,3455.0,3454.9,0.6725]
[1762601218892,4.5330362,3455.0,3454.9,1.1648]
[1762601219096,7.4273922,3455.0,3454.9,1.1648]
[1762601220084,7.4273922,3455.0,3454.9,0.677]
[1762601220588,4.5330362,3455.0,3454.9,1.1648]
[1762601221189,7.4273922,3455.0,3454.9,1.1648]
[1762601222912,4.5330362,3455.0,3454.9,1.1648]
[1762601224309,1.259712,3455.2,3454.9,1.1648]
[1762601224486,5.7927482,3455.3,3455.2,0.4774]
[1762601225008,5.7927482,3455.3,3455.2,0.9305]
[1762601226187,8.6868529,3455.3,3455.2,0.9305]
[1762601227584,8.6868529,3455.3,3454.9,0.1847]
[1762601227585,2.894356,3455.0,3454.9,0.1847]
[1762601227788,7.4273922,3455.0,3454.9,0.1847]
[1762601227994,7.4273922,3455.0,3454.9,0.6621]
[1762601228314,7.4273922,3455.0,3454.9,0.4784]
[1762601229681,10.39744967,3455.0,3454.9,0.001]
[1762601229881,11.32817481,3455.0,3454.9,0.001]
[1762601230900,6.79513861,3455.0,3454.9,0.001]
[1762601231106,5.08219314,3455.0,3454.9,0.001]
[1762601231807,4.60809314,3455.0,3454.9,0.4784]
[1762601234218,5.08219314,3455.0,3454.9,0.001]
[1762601234516,5.55889314,3455.0,3454.9,0.001]
[1762601234708,5.08219314,3455.0,3454.9,0.001]
[1762601236715,5.55889314,3455.0,3454.9,0.001]
[1762601236901,4.60809314,3455.0,3454.9,0.001]
[1762601237102,4.60809314,3455.0,3454.9,0.4784]
[1762601238427,9.24498931,3455.0,3454.9,0.4784]
[1762601239893,8.79096417,3455.0,3454.9,0.4784]
[1762601247234,8.79096417,3455.0,3454.9,0.001]
[1762601247635,8.79096417,3455.0,3454.9,0.4784]
[1762601249646,8.79096417,3455.0,3454.9,0.9315]
[1762601250052,8.79096417,3455.0,3454.9,0.4784]
[1762601252363,8.79096417,3455.0,3454.9,0.9565]
[1762601252526,8.79296417,3455.0,3454.9,0.4784]
[1762601252728,0.002,3455.0,3454.9,0.4784]
[1762601252928,0.002,3455.0,3454.9,3.85093978]
[1762601253169,0.002,3455.0,3454.9,0.9565]
[1762601254932,0.002,3455.0,3454.9,0.4784]
[1762601255128,2.896356,3455.0,3454.9,0.001]
[1762601255334,5.01539464,3455.0,3454.9,0.001]
[1762601256087,4.56459464,3455.0,3454.9,0.001]
[1762601256249,5.01539464,3455.0,3454.9,0.001]
[1762601257069,6.27510664,3455.0,3454.9,0.001]
[1762601257232,7.05619017,3455.0,3454.9,0.001]
[1762601257427,6.11769017,3455.0,3454.9,0.4637]
[1762601257757,5.33660664,3455.0,3454.9,0.4637]
[1762601257954,6.60539017,3455.0,3454.9,0.001]
[1762601258160,7.05619017,3455.0,3454.9,0.001]
[1762601260279,7.31803532,3455.0,3454.9,0.001]
[1762601260456,7.79613532,3455.0,3454.9,0.001]
[1762601260650,6.75320664,3455.0,3454.9,0.001]
[1762601263569,6.30240664,3455.0,3454.9,0.001]
[1762601263770,6.85677556,3455.0,3454.9,0.001]
[1762601263987,6.29920664,3455.0,3454.9,0.001]
[1762601264148,7.34113991,3455.0,3454.9,0.001]
[1762601264348,6.77180664,3455.0,3454.9,0.001]
[1762601264881,7.34113441,3455.0,3454.9,0.001]
[1762601265081,7.34113441,3455.0,3454.9,0.9487]
[1762601265082,0.78341513,3455.0,3454.9,0.9487]
[1762601265290,0.002,3455.0,3454.9,0.9487]
[1762601265447,0.002,3455.0,3454.9,3.84313978]
[1762601265644,0.002,3455.0,3454.9,4.27758817]
[1762601265970,0.002,3455.3,3455.2,2.89418846]
[1762601266174,0.002,3455.3,3455.2,3.37048846]
[1762601266395,0.002,3455.3,3455.2,3.84188846]
[1762601267191,0.002,3455.3,3455.2,4.27633434]
[1762601270168,0.002,3455.3,3455.2,4.24739246]
[1762601270769,0.002,3455.3,3455.2,4.27633434]
[1762601275021,1e-08,3455.4,3455.3,4.2473087]
[1762601275203,1e-08,3455.4,3455.3,5.5070207]
[1762601280612,1e-08,3455.4,3455.3,3.3704047]
[1762601280910,1e-08,3455.4,3455.3,3.8418047]
[1762601281134,1e-08,3455.4,3455.3,3.3704047]
[1762601281629,1e-08,3455.4,3455.3,0.4763]
[1762601282057,1.12920001,3455.4,3455.0,2.89427491]
[1762601282198,1.12920001,3455.4,3455.1,2.89420569]
[1762601282397,0.4992,3455.2,3454.9,2.89541765]
[1762601282934,0.9853,3455.2,3454.9,0.001]
[1762601283232,0.14400001,3455.4,3455.3,2.8941047]
[1762601283405,1e-08,3455.4,3455.3,3.3448047]
[1762601283601,1e-08,3455.4,3455.3,3.8404047]
[1762601286707,1e-08,3455.4,3455.3,3.86934574]
[1762601287246,1e-08,3455.4,3455.3,3.8404047]
[1762601287744,1e-08,3455.4,3455.3,3.86934574]
[1762601289047,1e-08,3455.4,3455.3,3.8404047]
[1762601289381,1e-08,3455.4,3455.3,3.3448047]
[1762601291085,0.48980001,3455.4,3455.3,2.8941047]
[1762601291282,0.98520001,3455.4,3455.2,2.89413082]
[1762601291582,0.4898,3455.3,3455.2,2.89413082]
[1762601291784,0.9851,3455.3,3455.2,2.89413082]
[1762601291984,0.9851,3455.3,3455.0,0.001]
[1762601292179,0.4898,3455.1,3455.0,2.89535575]
[1762601292996,0.9852,3455.1,3455.0,0.001]
[1762601293549,1.38753155,3455.1,3455.0,0.001]
[1762601293973,8.91869995,3455.1,3455.0,0.001]
[1762601294251,6.02442772,3455.1,3455.0,0.001]
[1762601294554,8.91869995,3455.1,3455.0,0.001]
[1762601294764,6.02442772,3455.1,3455.0,0.001]
[1762601294962,8.91869995,3455.1,3455.0,0.001]
[1762601295890,9.37272256,3455.1,3455.0,0.001]
[1762601296177,8.91869995,3455.1,3455.0,0.001]
[1762601297168,6.02442772,3455.1,3455.0,0.001]
[1762601297583,8.91869995,3455.1,3455.0,0.001]
[1762601298971,9.37272578,3455.1,3455.0,0.001]
[1762601299170,6.47845355,3455.1,3455.0,0.001]
[1762601299385,6.076122,3455.1,3455.0,0.001]
[1762601299886,5.580722,3455.1,3455.0,0.001]
[1762601300181,6.076122,3455.1,3455.0,0.001]
[1762601300348,5.9720137,3455.1,3455.0,0.001]
[1762601301481,0.94382583,3455.1,3455.0,0.001]
[1762601301982,0.45402583,3455.1,3455.0,0.001]
[1762601303775,0.45402583,3455.1,3455.0,0.4517]
[1762601303991,1e-08,3455.4,3455.0,0.9473]
[1762601304291,1e-08,3455.4,3455.3,3.3948047]
[1762601305011,1e-08,3455.4,3455.3,3.8904047]
[1762601306895,0.49920001,3455.4,3455.1,2.89425896]
[1762601307161,3.38847223,3455.1,3455.0,0.001]
[1762601307586,0.9852,3455.1,3455.0,0.001]
[1762601308879,0.45393308,3455.4,3455.0,0.4517]
[1762601309113,0.45393308,3455.4,3455.1,0.02894272]
[1762601309400,0.94933308,3455.4,3455.0,0.02994356]
[1762601309599,0.4898,3455.1,3455.0,0.001]
[1762601310463,0.4954,3455.3,3455.0,0.001]
[1762601310691,0.45393308,3455.4,3455.0,2.89532494]
[1762601310872,0.4954,3455.3,3455.0,0.001]
[1762601311076,0.4898,3455.1,3455.0,0.001]
[1762601311587,0.4898,3455.1,3455.0,2.895356]
[1762601312874,0.4954,3455.3,3455.0,2.895356]
[1762601313214,0.45393308,3455.4,3455.0,2.895356]
[1762601313386,0.92473308,3455.4,3455.0,2.895356]
[1762601314612,0.4708,3455.3,3455.0,0.001]
[1762601315827,0.4708,3455.3,3455.0,0.02994356]
[1762601315977,0.4708,3455.3,3455.0,0.001]
[1762601316618,0.4912,3455.1,3455.0,0.001]
[1762601316832,0.47080001,3455.4,3455.0,0.001]
[1762601317028,0.47080001,3455.4,3455.1,0.02894272]
[1762601317338,0.47080001,3455.4,3455.0,0.001]
[1762601317541,0.4912,3455.1,3455.0,0.001]
[1762601318111,1.259712,3455.3,3455.0,0.001]
[1762601318301,0.4912,3455.1,3455.0,0.001]
[1762601318511,3.38547223,3455.1,3455.0,0.001]
[1762601318695,3.85627223,3455.1,3455.0,0.001]
[1762601324232,0.962,3455.1,3455.0,0.001]
[1762601324442,3.85627223,3455.1,3455.0,0.001]
[1762601324601,1.84029603,3455.1,3455.0,0.001]
[1762601325329,4.73456826,3455.1,3455.0,0.001]
[1762601325700,1.84029603,3455.1,3455.0,0.001]
[1762601325905,4.73456826,3455.1,3455.0,0.001]
[1762601326796,1.84029603,3455.1,3455.0,0.001]
[1762601327317,1.259712,3455.3,3455.0,0.4613]
[1762601328019,1.720412,3455.3,3455.0,0.4613]
[1762601328322,6.25293101,3455.3,3455.0,0.4613]
[1762601329424,6.25293101,3455.3,3455.0,0.001]
[1762601330300,5.79223101,3455.3,3455.0,0.001]
[1762601330501,0.4736,3455.1,3455.0,0.001]
[1762601332751,0.9343,3455.1,3455.0,0.001]
[1762601332962,0.4736,3455.1,3455.0,0.001]
[1762601333717,8.68636218,3455.3,3455.0,0.4613]
[1762601334409,9.14706218,3455.3,3455.0,0.001]
[1762601334649,6.25293101,3455.3,3455.0,0.001]
[1762601334849,5.79223101,3455.3,3455.0,0.001]
[1762601335047,1e-08,3455.4,3455.2,0.4603]
[1762601335250,1e-08,3455.4,3455.3,0.4603]
[1762601335923,1e-08,3455.4,3455.3,3.3544047]
[1762601336226,0.144,3455.3,3455.0,0.001]
[1762601336428,0.47360001,3455.4,3455.2,2.89418846]
[1762601336626,1e-08,3455.4,3455.3,0.02894104]
[1762601336850,1e-08,3455.4,3455.3,2.8941047]
[1762601338355,1e-08,3455.4,3455.3,3.3544047]
[1762601341381,0.144,3455.3,3455.0,0.001]
[1762601341544,0.144,3455.3,3455.0,2.89530967]
[1762601342163,0.144,3455.3,3455.1,2.89427171]
[1762601343868,0.144,3455.3,3455.2,2.89418846]
[1762601344047,0.144,3455.3,3455.1,2.89423751]
[1762601344429,0.144,3455.3,3455.2,2.89418846]
[1762601345098,0.144,3455.3,3455.2,3.38398846]
[1762601347665,0.144,3455.3,3455.2,3.85328846]
[1762601351603,0.45395997,3455.4,3455.3,2.8941047]
[1762601351806,1e-08,3455.4,3455.3,4.2587087]
[1762601362858,1e-08,3455.4,3455.3,3.7894087]
[1762601363155,1e-08,3455.4,3455.3,4.2587087]
[1762601365030,1e-08,3455.4,3455.3,3.7894087]
[1762601365367,1e-08,3455.4,3455.3,4.2587087]
[1762601369462,1e-08,3455.4,3455.3,3.7894087]
[1762601370067,1e-08,3455.4,3455.3,4.2587087]
[1762601370279,1e-08,3455.4,3455.3,4.2597087]
[1762601371071,1e-08,3455.4,3455.3,3.3849047]
[1762601371436,1e-08,3455.4,3455.3,2.8951047]
[1762601371834,0.48340001,3455.4,3455.3,2.8951047]
[1762601372040,0.94480001,3455.4,3455.3,0.001]
[1762601375577,1.6182513,3455.4,3455.3,0.001]
[1762601380286,4.51227225,3455.4,3455.3,0.001]
[1762601381990,5.77198425,3455.4,3455.3,0.001]
[1762601388088,2.8779633,3455.4,3455.3,0.001]
[1762601388270,5.77198425,3455.4,3455.3,0.001]
[1762601391183,2.4165633,3455.4,3455.3,0.001]
[1762601392574,1.74311201,3455.4,3455.3,0.001]
[1762601393300,1.25971201,3455.4,3455.3,0.001]
[1762601393775,1e-08,3455.4,3455.3,0.4877]
[1762601397411,1e-08,3455.4,3455.3,3.3818047]
[1762601397799,1e-08,3455.4,3455.3,3.8649047]
[1762601398100,0.14400001,3455.4,3455.3,3.8649047]
[1762601398830,0.14400001,3455.4,3455.3,0.9708]
[1762601399116,0.14400001,3455.4,3455.3,3.3818047]
[1762601399872,0.14400001,3455.4,3455.3,0.4877]
[1762601400277,0.14400001,3455.4,3455.3,0.001]
[1762601400474,0.63280001,3455.4,3455.3,0.001]
[1762601402675,0.63280001,3455.4,3455.3,2.8951047]
[1762601402906,0.63280001,3455.4,3455.3,0.001]
[1762601403106,0.14400001,3455.4,3455.3,0.001]
[1762601403286,0.14400001,3455.4,3455.3,3.40134574]
[1762601403678,0.14400001,3455.4,3455.3,3.85674574]
[1762601406606,0.14400001,3455.4,3455.3,3.8278047]
[1762601407599,0.5979238,3455.4,3455.3,3.8278047]
[1762601409127,0.4539238,3455.4,3455.3,3.8278047]
[1762601410081,1e-08,3455.4,3455.3,3.8278047]
[1762601413127,1e-08,3455.4,3455.3,3.9718047]
[1762601414147,1e-08,3455.4,3455.3,3.5164047]
[1762601415211,1e-08,3455.4,3455.3,0.6223]
[1762601415544,0.96340001,3455.4,3455.3,0.001]
[1762601415750,1.81257716,3455.4,3455.3,0.001]
[1762601416512,0.46520001,3455.4,3455.3,0.001]
[1762601416735,1e-08,3455.4,3455.3,3.3724047]
[1762601417012,1e-08,3455.4,3455.3,3.40134574]
[1762601417213,1e-08,3455.4,3455.3,0.4783]
[1762601417643,0.46520001,3455.4,3455.3,2.8951047]
[1762601417827,0.46520001,3455.4,3455.3,0.001]
[1762601417828,0.96340001,3455.4,3455.3,0.001]
[1762601418419,0.96340001,3455.4,3455.3,2.8951047]
[1762601418615,0.96340001,3455.4,3455.3,0.001]
[1762601418949,0.96340001,3455.4,3455.3,2.8951047]
[1762601419116,0.46520001,3455.4,3455.3,2.8951047]
[1762601419455,0.46520001,3455.4,3455.3,0.001]
[1762601419654,0.46520001,3455.4,3455.3,2.8951047]
[1762601420257,0.46520001,3455.4,3455.3,0.001]
[1762601420258,0.96340001,3455.4,3455.3,0.001]
[1762601421344,0.46520001,3455.4,3455.3,2.8951047]
[1762601422539,0.96340001,3455.4,3455.3,0.001]
[1762601423335,0.96340001,3455.4,3455.3,2.8951047]
[1762601423535,0.46520001,3455.4,3455.3,2.8951047]
[1762601423736,1e-08,3455.4,3455.3,2.8951047]
[1762601425067,1e-08,3455.4,3455.3,3.3724047]
[1762601425740,1e-08,3455.4,3455.3,2.8951047]
[1762601425947,0.46520001,3455.4,3455.3,2.8951047]
[1762601428772,1e-08,3455.4,3455.3,2.8951047]
[1762601430745,1e-08,3455.4,3455.3,0.001]
[1762601431175,1e-08,3455.4,3455.3,2.8951047]
[1762601432187,1e-08,3455.4,3455.3,3.3506047]
[1762601432586,0.49130001,3455.4,3455.3,2.8951047]
[1762601432780,0.97980001,3455.4,3455.3,2.8951047]
[1762601432974,0.49130001,3455.4,3455.3,2.8951047]
[1762601434275,0.49130001,3455.4,3455.3,0.001]
[1762601434584,0.49130001,3455.4,3455.3,2.8951047]
[1762601435889,0.49130001,3455.4,3455.3,0.001]
[1762601436090,0.49130001,3455.4,3455.3,2.8951047]
[1762601436780,0.94524281,3455.4,3455.3,2.8951047]
[1762601437391,0.94524281,3455.4,3455.3,0.001]
[1762601437595,1.43374281,3455.4,3455.3,0.001]
[1762601437888,2.04483839,3455.4,3455.3,0.001]
[1762601438800,4.93885934,3455.4,3455.3,0.001]
[1762601440896,6.19857134,3455.4,3455.3,0.001]